bitfinex-derivatives/quotes_BNBF0:USTF0_20250709
["timestamp","ask_amount","ask_price","bid_price","bid_amount"]
[1752097981101,3.62730459,668.31,667.7,1.53802687]
[1752097981302,3.62730459,668.31,667.71,1.53802687]
[1752097981501,3.62730459,668.31,667.72,1.53802687]
[1752097981697,3.62730459,668.31,667.73,1.53802687]
[1752097981698,3.36686161,668.29,667.73,1.53802687]
[1752097981897,3.36686161,668.28,667.74,1.53802687]
[1752097982099,0.26044298,668.31,667.75,1.53802687]
[1752097982100,3.36686161,668.27,667.75,1.53802687]
[1752097982303,3.36686161,668.27,667.76,1.53802687]
[1752097982503,3.36686161,668.27,667.77,1.53802687]
[1752097982702,3.36686161,668.27,667.78,1.53802687]
[1752097983002,3.36686161,668.29,667.79,1.53802687]
[1752097983208,3.36686161,668.29,667.8,1.53802687]
[1752097983409,3.36686161,668.29,667.81,1.53802687]
[1752097983708,3.36686161,668.29,667.82,1.53802687]
[1752097984008,3.36686161,668.29,667.83,1.53802687]
[1752097984204,3.36686161,668.29,667.84,1.53802687]
[1752097984409,3.36686161,668.29,667.85,1.53802687]
[1752097984610,3.36686161,668.3,667.67,2.404]
[1752097984810,3.36686161,668.3,667.68,1.53802505]
[1752097985011,3.36686161,668.3,667.69,1.53802505]
[1752097985310,3.36686161,668.26,667.7,1.53802505]
[1752097985505,3.36686161,668.26,667.71,1.53802505]
[1752097985710,3.36686161,668.26,667.72,1.53802505]
[1752097985912,3.36686161,668.27,667.73,1.53802505]
[1752097986111,3.36686161,668.27,667.74,1.53802505]
[1752097986307,3.36686161,668.27,667.75,1.53802505]
[1752097986611,3.36686161,668.27,667.76,1.53802505]
[1752097986807,3.36686161,668.26,667.77,1.53802505]
[1752097987011,3.36686161,668.26,667.78,1.53802505]
[1752097987211,3.36686161,668.26,667.79,1.53802505]
[1752097987511,3.36686161,668.26,667.8,1.53802505]
[1752097987712,3.36686161,668.26,667.81,1.53802505]
[1752097988005,3.36686161,668.26,667.82,1.53802505]
[1752097988211,3.36686161,668.26,667.83,1.53802505]
[1752097988409,0.26044298,668.31,667.84,1.53802505]
[1752097988607,0.26044298,668.31,667.85,1.53802505]
[1752097988812,0.26044298,668.31,667.67,2.404]
[1752097989012,0.26044298,668.31,667.68,1.53803945]
[1752097989212,0.26044298,668.31,667.67,2.404]
[1752097989213,0.26044298,668.31,667.69,1.53803945]
[1752097989409,0.26044298,668.31,667.7,1.53803945]
[1752097989609,0.26044298,668.31,667.71,1.53803945]
[1752097989907,0.26044298,668.31,667.72,1.53803945]
[1752097990214,0.26044298,668.31,667.73,1.53803945]
[1752097990415,0.26044298,668.31,667.74,1.53803945]
[1752097990614,0.26044298,668.31,667.75,1.53803945]
[1752097990910,0.26044298,668.31,667.76,1.53803945]
[1752097991114,0.26044298,668.31,667.67,2.404]
[1752097991314,0.26044298,668.31,667.68,1.53733214]
[1752097991611,0.26044298,668.31,667.69,1.53733214]
[1752097991815,0.26044298,668.31,667.7,1.53733214]
[1752097992016,0.26044298,668.31,667.71,1.53733214]
[1752097992216,0.26044298,668.31,667.67,2.404]
[1752097992417,0.26044298,668.31,667.68,1.53694607]
[1752097992616,0.26044298,668.31,667.69,1.53694607]
[1752097992917,0.26044298,668.31,667.7,1.53694607]
[1752097993215,0.26044298,668.31,667.67,2.404]
[1752097993417,0.26044298,668.31,667.68,1.53657418]
[1752097993712,0.26044298,668.31,667.69,1.53657418]
[1752097993917,0.26044298,668.31,667.7,1.53657418]
[1752097994118,0.26044298,668.31,667.67,2.404]
[1752097994312,0.26044298,668.31,667.68,1.53629398]
[1752097994516,0.26044298,668.31,667.69,1.53629398]
[1752097994713,0.26044298,668.31,667.67,2.404]
[1752097994912,0.26044298,668.31,667.68,1.53627608]
[1752097995116,0.26044298,668.31,667.69,1.53627608]
[1752097995314,0.26044298,668.31,667.67,2.404]
[1752097995619,0.26044298,668.31,667.68,1.53602267]
[1752097995820,0.26044298,668.31,667.69,1.53602267]
[1752097996119,0.26044298,668.31,667.67,2.404]
[1752097996320,0.26044298,668.31,667.68,1.53581784]
[1752097996515,0.26044298,668.31,667.67,2.404]
[1752097996720,0.26044298,668.31,667.68,1.53580084]
[1752097996919,0.26044298,668.31,667.67,2.404]
[1752097997121,3.36686161,668.3,667.67,2.404]
[1752097998222,3.62730459,668.31,667.67,2.404]
[1752097998916,3.36686161,668.3,667.67,2.404]
[1752097999624,3.36686161,668.29,667.67,2.404]
[1752098000623,3.36686161,668.27,667.67,2.404]
[1752098001124,3.36686161,668.28,667.67,2.404]
[1752098001619,3.36686161,668.26,667.67,2.404]
[1752098002019,3.36686161,668.25,667.67,2.404]
[1752098002219,3.36686161,668.26,667.67,2.404]
[1752098002519,3.36686161,668.25,667.67,2.404]
[1752098003122,3.36686161,668.26,667.67,2.404]
[1752098004719,3.36686161,668.25,667.67,2.404]
[1752098005223,3.36686161,668.26,667.67,2.404]
[1752098005620,3.36686161,668.25,667.67,2.404]
[1752098006222,3.36686161,668.24,667.67,2.404]
[1752098006620,3.36686161,668.25,667.67,2.404]
[1752098006923,3.36686161,668.2,667.67,2.404]
[1752098007622,3.36686161,668.21,667.67,2.404]
[1752098008822,3.36686161,668.18,667.67,2.404]
[1752098009227,3.36686161,668.19,667.67,2.404]
[1752098009422,3.36686161,668.18,667.67,2.404]
[1752098010529,3.36686161,668.23,667.67,2.404]
[1752098012324,3.36686161,668.24,667.67,2.404]
[1752098016131,3.36686161,668.23,667.67,2.404]
[1752098017230,3.36686161,668.25,667.67,2.404]
[1752098017432,3.36686161,668.27,667.67,2.404]
[1752098019034,3.36686161,668.26,667.67,2.404]
[1752098019234,3.36686161,668.27,667.67,2.404]
[1752098019532,3.62730459,668.31,667.67,2.404]
[1752098020232,3.36686161,668.3,667.67,2.404]
[1752098021535,3.36686161,668.29,667.67,2.404]
[1752098021837,3.36686161,668.3,667.67,2.404]
[1752098022035,3.36686161,668.28,667.67,2.404]
[1752098025341,3.36686161,668.27,667.67,2.404]
[1752098026139,3.36686161,668.27,667.32,1.94448375]
[1752098026340,3.36686161,668.27,667.33,1.53584935]
[1752098026540,3.36686161,668.27,667.34,1.53584935]
[1752098026741,3.36686161,668.27,667.35,1.53584935]
[1752098026942,3.36686161,668.27,667.36,1.53584935]
[1752098027141,3.36686161,668.29,667.37,1.53584935]
[1752098027436,3.36686161,668.27,667.38,1.53584935]
[1752098027740,3.36686161,668.27,667.39,1.53584935]
[1752098027937,3.36686161,668.27,667.4,1.53584935]
[1752098028238,3.36686161,668.27,667.41,1.53584935]
[1752098028440,3.36686161,668.27,667.42,1.53584935]
[1752098028638,3.36686161,668.27,667.43,1.53584935]
[1752098028937,3.36686161,668.27,667.44,1.53584935]
[1752098029239,3.36686161,668.27,667.45,4.07384935]
[1752098029441,3.36686161,668.23,667.46,1.53584935]
[1752098029640,3.36686161,668.23,667.47,1.53584935]
[1752098029836,3.36686161,668.23,667.48,1.53584935]
[1752098030039,3.36686161,668.22,667.49,1.53584935]
[1752098030240,3.36686161,668.22,667.5,1.53584935]
[1752098030537,3.36686161,668.22,667.51,1.53584935]
[1752098030743,3.36686161,668.22,667.52,1.53584935]
[1752098030939,3.36686161,668.22,667.53,1.53584935]
[1752098031138,3.36686161,668.22,667.54,1.53584935]
[1752098031342,3.36686161,668.22,667.55,1.53584935]
[1752098031544,3.36686161,668.22,667.56,1.53584935]
[1752098031743,0.26044298,668.31,667.57,1.53584935]
[1752098031744,3.36686161,668.21,667.57,1.53584935]
[1752098032043,3.36686161,668.23,667.58,1.53584935]
[1752098032241,3.36686161,668.23,667.59,1.53584935]
[1752098032445,3.36686161,668.23,667.6,1.53584935]
[1752098032641,3.36686161,668.23,667.61,1.53584935]
[1752098032944,3.36686161,668.24,667.45,2.538]
[1752098033142,3.36686161,668.24,667.46,1.53621713]
[1752098033345,3.36686161,668.24,667.47,1.53621713]
[1752098033543,3.36686161,668.24,667.48,1.53621713]
[1752098033743,3.36686161,668.24,667.49,1.53621713]
[1752098033947,3.36686161,668.24,667.5,1.53621713]
[1752098034243,3.36686161,668.24,667.51,1.53621713]
[1752098034446,3.36686161,668.24,667.52,1.53621713]
[1752098034646,3.36686161,668.24,667.53,1.53621713]
[1752098034946,3.36686161,668.24,667.54,1.53621713]
[1752098035142,3.36686161,668.24,667.55,1.53621713]
[1752098035443,3.36686161,668.24,667.56,1.53621713]
[1752098035642,3.36686161,668.24,667.45,2.538]
[1752098035643,3.36686161,668.24,667.57,1.53621713]
[1752098035842,3.36686161,668.24,667.58,1.53621713]
[1752098036043,3.36686161,668.24,667.45,2.538]
[1752098036044,3.36686161,668.24,667.59,1.53621713]
[1752098036246,3.36686161,668.24,667.6,1.53621713]
[1752098036444,3.36686161,668.24,667.61,1.53621713]
[1752098036646,3.36686161,668.23,667.62,1.53621713]
[1752098036846,3.36686161,668.2,667.45,2.538]
[1752098037045,3.36686161,668.2,667.46,1.53393599]
[1752098037347,3.36686161,668.2,667.47,1.53393599]
[1752098037544,3.36686161,668.2,667.48,1.53393599]
[1752098037746,3.36686161,668.2,667.49,1.53393599]
[1752098037947,3.36686161,668.2,667.5,1.53393599]
[1752098038147,3.36686161,668.2,667.51,1.53393599]
[1752098038348,3.36686161,668.2,667.52,1.53393599]
[1752098038548,0.26057071,668.03,667.53,1.53393599]
[1752098038744,0.26057071,668.03,667.54,1.53393599]
[1752098039047,0.26057071,668.03,667.55,1.53393599]
[1752098039247,0.26057071,668.03,667.56,1.53393599]
[1752098039448,0.26057071,668.03,667.57,1.53393599]
[1752098039644,0.26057071,668.03,667.58,1.53393599]
[1752098039847,0.26057071,668.03,667.59,1.53393599]
[1752098040046,0.26057071,668.03,667.6,1.53393599]
[1752098040249,0.26057071,668.03,667.61,1.53393599]
[1752098040544,0.26057071,668.03,667.62,1.53393599]
[1752098040749,0.26057071,668.03,667.63,1.53393599]
[1752098040950,0.26057071,668.03,667.45,2.538]
[1752098041150,0.26057071,668.03,667.46,1.53435644]
[1752098041450,0.26057071,668.03,667.47,1.53435644]
[1752098041746,0.26057071,668.03,667.48,1.53435644]
[1752098041950,0.26057071,668.03,667.49,1.53435644]
[1752098042143,0.26057071,668.03,667.5,1.53435644]
[1752098042350,0.26057071,668.03,667.51,1.53435644]
[1752098042549,0.26057071,668.03,667.52,1.53435644]
[1752098042747,0.26057071,668.03,667.45,2.538]
[1752098042748,0.26057071,668.03,667.53,1.53435644]
[1752098043047,0.26057071,668.03,667.54,1.53435644]
[1752098043248,0.26057071,668.03,667.55,1.53435644]
[1752098043453,0.26057071,668.03,667.56,1.53435644]
[1752098043652,0.26057071,668.03,667.57,1.53435644]
[1752098043853,0.26057071,668.03,667.58,1.53435644]
[1752098044054,0.26057071,668.03,667.59,1.53435644]
[1752098044251,0.26057071,668.03,667.6,1.53435644]
[1752098044554,0.26057071,668.03,667.61,1.53435644]
[1752098044850,0.26057071,668.03,667.62,1.53435644]
[1752098045153,0.26057071,668.03,667.63,1.53435644]
[1752098045453,0.26057071,668.03,667.64,1.53435644]
[1752098045654,0.26057071,668.03,667.65,1.53435644]
[1752098045854,0.26057071,668.03,667.45,2.538]
[1752098046051,0.26057071,668.03,667.46,1.53543088]
[1752098046354,0.26057071,668.03,667.47,1.53543088]
[1752098046555,0.26057071,668.03,667.48,1.53543088]
[1752098046855,0.26057071,668.03,667.49,1.53543088]
[1752098047150,0.26057071,668.03,667.5,1.53543088]
[1752098047351,0.26057071,668.03,667.51,1.53543088]
[1752098047555,0.26057071,668.03,667.52,1.53543088]
[1752098047755,0.26057071,668.03,667.53,1.53543088]
[1752098047957,0.26057071,668.03,667.54,1.53543088]
[1752098048254,0.26057071,668.03,667.55,1.53543088]
[1752098048554,0.26057071,668.03,667.56,1.53543088]
[1752098048857,0.26057071,668.03,667.57,1.53543088]
[1752098049052,0.26057071,668.03,667.58,1.53543088]
[1752098049252,0.26057071,668.03,667.59,1.53543088]
[1752098049457,0.26057071,668.03,667.6,1.53543088]
[1752098049657,0.26057071,668.03,667.61,1.53543088]
[1752098049855,0.26057071,668.03,667.62,1.53543088]
[1752098050158,0.26057071,668.03,667.63,1.53543088]
[1752098050357,0.26057071,668.03,667.64,1.53543088]
[1752098050554,0.26057071,668.03,667.65,1.53543088]
[1752098050757,0.26057071,668.03,667.66,1.53543088]
[1752098050954,0.26057071,668.03,667.67,1.53543088]
[1752098051160,0.26057071,668.03,667.68,1.53543088]
[1752098051360,0.26057071,668.03,667.69,1.53543088]
[1752098051561,0.26057071,668.03,667.7,1.53543088]
[1752098051763,0.26057071,668.03,667.47,1.68403785]
[1752098051962,0.26057071,668.03,667.48,3.22165922]
[1752098052163,0.26057071,668.03,667.49,1.53762137]
[1752098052363,0.26057071,668.03,667.5,1.53762137]
[1752098052560,0.26057071,668.03,667.45,2.538]
[1752098053363,0.26057071,668.03,667.34,0.26056486]
[1752098054064,0.26057071,668.03,667.45,1.68412357]
[1752098054259,0.26057071,668.03,667.46,1.53766556]
[1752098054460,0.26057071,668.03,667.47,1.53766556]
[1752098054660,0.26057071,668.03,667.48,1.53766556]
[1752098054860,0.26057071,668.03,667.49,1.53766556]
[1752098055159,0.26057071,668.03,667.5,1.53766556]
[1752098055360,0.26057071,668.03,667.51,1.53766556]
[1752098055562,0.26057071,668.03,667.52,1.53766556]
[1752098055763,0.26057071,668.03,667.53,1.53766556]
[1752098056063,0.26057071,668.03,667.54,1.53766556]
[1752098056263,0.26057071,668.03,667.55,1.53766556]
[1752098056564,0.26057071,668.03,667.56,1.53766556]
[1752098056860,0.26057071,668.03,667.57,1.53766556]
[1752098057060,0.26057071,668.03,667.58,1.53766556]
[1752098057265,0.26057071,668.03,667.59,1.53766556]
[1752098057563,0.26057071,668.03,667.6,1.53766556]
[1752098057763,0.26057071,668.03,667.56,2.344]
[1752098057764,0.26057071,668.03,667.61,1.53766556]
[1752098057964,0.26057071,668.03,667.62,1.53766556]
[1752098058164,0.26057071,668.03,667.63,1.53766556]
[1752098058364,0.26057071,668.03,667.64,1.53766556]
[1752098058561,0.26057071,668.03,667.65,1.53766556]
[1752098058765,0.26057071,668.03,667.66,1.53766556]
[1752098058966,0.26057071,668.03,667.67,1.53766556]
[1752098059163,0.26057071,668.03,667.68,1.53766556]
[1752098059366,0.26057071,668.03,667.56,2.344]
[1752098059568,0.26057071,668.03,667.57,1.53772084]
[1752098059766,0.26057071,668.03,667.58,1.53772084]
[1752098059965,0.26057071,668.03,667.59,1.53772084]
[1752098060169,0.26057071,668.03,667.6,1.53772084]
[1752098060369,0.26057071,668.03,667.61,1.53772084]
[1752098060567,0.26057071,668.03,667.62,1.53772084]
[1752098060765,0.26057071,668.03,667.63,1.53772084]
[1752098060966,0.26057071,668.03,667.56,2.344]
[1752098061270,0.26057071,668.03,667.57,1.53753119]
[1752098061467,0.26057071,668.03,667.58,1.53753119]
[1752098061770,0.26057071,668.03,667.59,1.53753119]
[1752098061965,0.26057071,668.03,667.6,1.53753119]
[1752098062166,0.26057071,668.03,667.61,1.53753119]
[1752098062368,0.26057071,668.03,667.62,1.53753119]
[1752098062569,0.26057071,668.03,667.56,2.344]
[1752098062770,0.26057071,668.03,667.57,1.53714213]
[1752098062970,0.26057071,668.03,667.58,1.53714213]
[1752098063270,0.26057071,668.03,667.59,1.53714213]
[1752098063466,0.26057071,668.03,667.6,1.53714213]
[1752098063767,0.26057071,668.03,667.61,1.53714213]
[1752098063971,0.26057071,668.03,667.62,1.53714213]
[1752098064170,0.26057071,668.03,667.56,2.344]
[1752098064370,0.26057071,668.03,667.57,1.53687032]
[1752098064568,0.26057071,668.03,667.58,1.53687032]
[1752098064770,0.26057071,668.03,667.59,1.53687032]
[1752098064969,0.26057071,668.03,667.6,1.53687032]
[1752098065169,0.26057071,668.03,667.61,1.53687032]
[1752098065373,0.26057071,668.03,667.56,2.344]
[1752098065570,0.26057071,668.03,667.57,1.53675969]
[1752098065773,0.26057071,668.03,667.58,1.53675969]
[1752098065973,0.26057071,668.03,667.59,1.53675969]
[1752098066171,0.26057071,668.03,667.6,1.53675969]
[1752098066369,0.26057071,668.03,667.61,1.53675969]
[1752098066572,0.26057071,668.03,667.56,2.344]
[1752098066769,0.26057071,668.03,667.57,1.54075459]
[1752098066975,0.26057071,668.03,667.58,1.54075459]
[1752098067275,0.26057071,668.03,667.59,1.54075459]
[1752098067471,0.26057071,668.03,667.6,1.54075459]
[1752098067674,0.26057071,668.03,667.61,1.54075459]
[1752098067973,0.26057071,668.03,667.56,2.344]
[1752098068172,0.26057071,668.03,667.57,1.54065803]
[1752098068371,0.26057071,668.03,667.58,1.54065803]
[1752098068576,0.26057071,668.03,667.59,1.54065803]
[1752098068775,0.26057071,668.03,667.6,1.54065803]
[1752098068973,0.26057071,668.03,667.61,1.54065803]
[1752098069173,0.26057071,668.03,667.56,2.344]
[1752098069473,0.26057071,668.03,667.57,1.54051583]
[1752098069677,0.26057071,668.03,667.56,2.344]
[1752098069678,0.26057071,668.03,667.58,1.54051583]
[1752098069871,0.26057071,668.03,667.59,1.54051583]
[1752098070075,0.26057071,668.03,667.6,1.54051583]
[1752098070275,0.26057071,668.03,667.61,1.54051583]
[1752098070473,0.26057071,668.03,667.56,2.344]
[1752098070673,0.26057071,668.03,667.57,1.5404515]
[1752098070875,0.26057071,668.03,667.58,1.5404515]
[1752098071073,0.26057071,668.03,667.59,1.5404515]
[1752098071276,0.26057071,668.03,667.6,1.5404515]
[1752098071577,0.26057071,668.03,667.61,1.54039369]
[1752098071774,0.26057071,668.03,667.56,2.344]
[1752098072078,0.26057071,668.03,667.57,1.54039369]
[1752098072278,0.26057071,668.03,667.58,1.54039369]
[1752098072577,0.26057071,668.03,667.56,2.344]
[1752098072774,0.26057071,668.03,667.57,1.54034184]
[1752098072974,0.26057071,668.03,667.58,1.54034184]
[1752098073275,0.26057071,668.03,667.56,2.344]
[1752098073573,0.26057071,668.03,667.57,1.54029544]
[1752098073773,0.26057071,668.03,667.58,1.54029544]
[1752098074077,0.26057071,668.03,667.56,2.344]
[1752098074279,0.26057071,668.03,667.57,1.54028981]
[1752098074477,0.26057071,668.03,667.58,1.54028981]
[1752098074773,0.26057071,668.03,667.56,2.344]
[1752098074976,0.26057071,668.03,667.57,1.54025414]
[1752098075174,0.26057071,668.03,667.58,1.54025414]
[1752098075374,0.26057071,668.03,667.56,2.344]
[1752098075575,0.26057071,668.03,667.57,1.54021817]
[1752098075776,0.26057071,668.03,667.58,1.54021817]
[1752098075981,0.26057071,668.03,667.56,2.344]
[1752098076178,0.26057071,668.03,667.57,1.54021427]
[1752098076379,0.26057071,668.03,667.58,1.54021427]
[1752098076582,0.26057071,668.03,667.56,2.344]
[1752098076781,0.26057071,668.03,667.57,1.54018676]
[1752098076978,0.26057071,668.03,667.58,1.54018676]
[1752098077277,0.26057071,668.03,667.56,2.344]
[1752098077582,0.26057071,668.03,667.57,1.54015971]
[1752098077882,0.26057071,668.03,667.58,1.54015971]
[1752098078082,0.26057071,668.03,667.56,2.344]
[1752098078278,0.26057071,668.03,667.57,1.54015807]
[1752098078581,0.26057071,668.03,667.58,1.54015807]
[1752098078779,0.26057071,668.03,667.56,2.344]
[1752098078978,0.26057071,668.03,667.57,1.54013663]
[1752098079281,0.26057071,668.03,667.58,1.54013663]
[1752098079482,0.26057071,668.03,667.56,2.344]
[1752098079778,0.26057071,668.03,667.57,1.54011802]
[1752098079976,0.26057071,668.03,667.58,1.54011802]
[1752098080179,0.26057071,668.03,667.56,2.344]
[1752098080377,0.26057071,668.03,667.57,1.54010343]
[1752098080577,0.26057071,668.03,667.58,1.54010343]
[1752098080781,0.26057071,668.03,667.56,2.344]
[1752098080981,0.26057071,668.03,667.57,1.54010343]
[1752098081182,0.26057071,668.03,667.58,1.54010343]
[1752098081381,0.26057071,668.03,667.56,2.344]
[1752098081680,0.26057071,668.03,667.57,1.54009426]
[1752098081878,0.26057071,668.03,667.58,1.54009426]
[1752098082082,0.26057071,668.03,667.59,1.54009426]
[1752098082379,0.26057071,668.03,667.56,2.344]
[1752098082578,0.26057071,668.03,667.57,1.54007892]
[1752098082778,0.26057071,668.03,667.58,1.54007892]
[1752098082978,0.26057071,668.03,667.59,1.54007892]
[1752098083183,0.26057071,668.03,667.56,2.344]
[1752098083378,0.26057071,668.03,667.57,1.5400667]
[1752098083582,0.26057071,668.03,667.58,1.5400667]
[1752098083784,0.26057071,668.03,667.59,1.5400667]
[1752098083984,0.26057071,668.03,667.56,2.344]
[1752098084185,0.26057071,668.03,667.57,1.54006239]
[1752098084384,0.26057071,668.03,667.58,1.54006239]
[1752098084681,0.26057071,668.03,667.56,2.344]
[1752098084984,0.26057071,668.03,667.57,1.54005746]
[1752098085181,0.26057071,668.03,667.58,1.54005746]
[1752098085382,0.26057071,668.03,667.59,1.54005746]
[1752098085582,0.26057071,668.03,667.56,2.344]
[1752098085782,0.26057071,668.03,667.57,1.54004963]
[1752098085985,0.26057071,668.03,667.58,1.54004963]
[1752098086180,0.26057071,668.03,667.59,1.54004963]
[1752098086482,0.26057071,668.03,667.56,2.344]
[1752098086685,0.26057071,668.03,667.57,1.54004719]
[1752098086883,0.26057071,668.03,667.58,1.54004719]
[1752098087083,0.26057071,668.03,667.59,1.54004719]
[1752098087282,0.26057071,668.03,667.56,2.344]
[1752098087489,0.26057071,668.03,667.57,1.54004754]
[1752098087687,0.26057071,668.03,667.58,1.54004754]
[1752098087886,0.26057071,668.03,667.59,1.54004754]
[1752098088085,0.26057071,668.03,667.56,2.344]
[1752098088384,0.26057071,668.03,667.57,1.54004843]
[1752098088588,0.26057071,668.03,667.58,1.54004843]
[1752098088790,0.26057071,668.03,667.59,1.54004843]
[1752098088987,0.26057071,668.03,667.56,2.344]
[1752098089186,0.26057071,668.03,667.57,1.5400525]
[1752098089490,0.26057071,668.03,667.58,1.5400525]
[1752098089690,0.26057071,668.03,667.59,1.5400525]
[1752098089890,0.26057071,668.03,667.56,2.344]
[1752098090087,0.26057071,668.03,667.57,1.54005601]
[1752098090287,0.26057071,668.03,667.58,1.54005601]
[1752098090488,0.26057071,668.03,667.59,1.54005601]
[1752098090793,0.26057071,668.03,667.56,2.344]
[1752098090990,0.26057071,668.03,667.57,1.54006474]
[1752098091187,0.26057071,668.03,667.58,1.54006474]
[1752098091388,0.26057071,668.03,667.59,1.54006474]
[1752098091588,0.26057071,668.03,667.56,2.344]
[1752098091793,0.26057071,668.03,667.57,1.54007641]
[1752098091993,0.26057071,668.03,667.58,1.54007641]
[1752098092193,0.26057071,668.03,667.59,1.54007641]
[1752098092490,0.26057071,668.03,667.56,2.344]
[1752098092694,0.26057071,668.03,667.57,1.54008719]
[1752098092893,0.26057071,668.03,667.58,1.54008719]
[1752098093189,0.26057071,668.03,667.59,1.54008719]
[1752098093391,0.26057071,668.03,667.56,2.344]
[1752098093594,0.26057071,668.03,667.57,1.54010164]
[1752098093789,0.26057071,668.03,667.58,1.54010164]
[1752098093989,0.26057071,668.03,667.59,1.54010164]
[1752098094290,0.26057071,668.03,667.56,2.344]
[1752098094493,0.26057071,668.03,667.57,1.54011862]
[1752098094695,0.26057071,668.03,667.58,1.54011862]
[1752098094895,0.26057071,668.03,667.59,1.54011862]
[1752098095196,0.26057071,668.03,667.56,2.344]
[1752098095392,0.26057071,668.03,667.57,1.54013922]
[1752098095592,0.26057071,668.03,667.58,1.54013922]
[1752098095793,0.26057071,668.03,667.59,1.54013922]
[1752098095997,0.26057071,668.03,667.56,2.344]
[1752098096198,0.26057071,668.03,667.57,1.54015614]
[1752098096392,0.26057071,668.03,667.58,1.54015614]
[1752098096597,0.26057071,668.03,667.59,1.54015614]
[1752098096795,0.26057071,668.03,667.56,2.344]
[1752098096995,0.26057071,668.03,667.57,1.54527746]
[1752098097196,0.26057071,668.03,667.58,1.54527746]
[1752098097499,0.26057071,668.03,667.59,1.54527746]
[1752098097693,0.26057071,668.03,667.56,2.344]
[1752098097899,0.26057071,668.03,667.57,1.54530238]
[1752098098096,0.26057071,668.03,667.58,1.54530238]
[1752098098394,0.26057071,668.03,667.59,1.54530238]
[1752098098597,0.26057071,668.03,667.56,2.344]
[1752098098795,0.26057071,668.03,667.57,1.54532979]
[1752098098995,0.26057071,668.03,667.58,1.54532979]
[1752098099199,0.26057071,668.03,667.59,1.54532979]
[1752098099401,0.26057071,668.03,667.56,2.344]
[1752098099598,0.26057071,668.03,667.57,1.54536088]
[1752098099800,0.26057071,668.03,667.56,2.344]
[1752098099801,0.26057071,668.03,667.58,1.54536088]
[1752098100097,0.26057071,668.03,667.59,1.54536088]
[1752098100299,0.26057071,668.03,667.56,2.344]
[1752098100601,0.26057071,668.03,667.57,1.54536053]
[1752098100803,0.26057071,668.03,667.58,1.54536053]
[1752098101002,0.26057071,668.03,667.59,1.54536053]
[1752098101302,0.26057071,668.03,667.56,2.344]
[1752098101601,0.26057071,668.03,667.57,1.54539965]
[1752098101802,0.26057071,668.03,667.58,1.54539965]
[1752098102002,0.26057071,668.03,667.59,1.54539965]
[1752098102301,0.26057071,668.03,667.37,1.68265423]
[1752098102502,0.26057071,668.03,667.38,1.54544329]
[1752098102702,0.26057071,668.03,667.39,1.54544329]
[1752098102900,0.26057071,668.03,667.4,1.54544329]
[1752098103198,0.26057071,668.03,667.41,1.54544329]
[1752098103404,0.26057071,668.03,667.42,1.54544329]
[1752098103703,0.26057071,668.03,667.43,1.54544329]
[1752098103998,0.26057071,668.03,667.44,1.54544329]
[1752098104203,0.26057071,668.03,667.45,1.54544329]
[1752098104405,0.26057071,668.03,667.46,1.54544329]
[1752098104603,0.26057071,668.03,667.47,1.54544329]
[1752098104808,0.26057071,668.03,667.48,1.54544329]
[1752098105002,0.26057071,668.03,667.49,1.54544329]
[1752098105201,0.26057071,668.03,667.5,1.54544329]
[1752098105403,0.26057071,668.03,667.51,1.54544329]
[1752098105604,0.26057071,668.03,667.52,1.54544329]
[1752098105804,0.26057071,668.03,667.53,1.54544329]
[1752098106109,0.26057071,668.03,667.46,2.673]
[1752098106110,0.26057071,668.03,667.54,1.54544329]
[1752098106305,0.26057071,668.03,667.55,1.54544329]
[1752098106604,0.26057071,668.03,667.56,1.54544329]
[1752098106801,0.26057071,668.03,667.57,1.54544329]
[1752098107104,0.26057071,668.03,667.58,1.54544329]
[1752098107302,0.26057071,668.03,667.59,1.54544329]
[1752098107608,0.26057071,668.03,667.6,1.54544329]
[1752098107808,0.26057071,668.03,667.46,2.673]
[1752098108005,0.26057071,668.03,667.47,1.54573515]
[1752098108209,0.26057071,668.03,667.48,1.54573515]
[1752098108405,0.26057071,668.03,667.49,1.54573515]
[1752098108711,0.26057071,668.03,667.5,1.54573515]
[1752098109009,0.26057071,668.03,667.51,1.54573515]
[1752098109209,0.26057071,668.03,667.52,1.54573515]
[1752098109406,0.26057071,668.03,667.53,1.54573515]
[1752098109605,3.61934846,668.03,667.54,1.54573515]
[1752098109809,3.61934846,668.03,667.46,2.673]
[1752098109810,3.61934846,668.03,667.55,1.54573515]
[1752098110006,3.61934846,668.03,667.56,1.54573515]
[1752098110209,3.61934846,668.03,667.57,1.54573515]
[1752098110410,0.26057071,668.03,667.58,1.54573515]
[1752098110709,0.26057071,668.03,667.59,1.54573515]
[1752098111010,0.26057071,668.03,667.6,1.54573515]
[1752098111206,0.26057071,668.03,667.61,1.54610071]
[1752098111409,0.26057071,668.03,667.46,2.673]
[1752098111607,0.26057071,668.03,667.47,1.54610071]
[1752098111906,0.26057071,668.03,667.48,1.54610071]